Cogmind - Beta 13 @@@ ROGUE MODE // 2024.04.12 @ 22:47:25 Player: SPRING Result: Destroyed by as-30651 with Assembled Heavy Rifle Performance ------------- Evolutions (0) 0 Regions Visited (4) 800 Robots Destroyed (24) 120 Value Destroyed (309) 309 Prototype IDs (8) 160 Alien Tech Used (0) 0 Bonus (300) 300 TOTAL SCORE: 1689 Bonus ------- Aligned with FarCom 300 Cogmind --------- Core Integrity 0/250 Matter 297/300 Energy 250/250 System Corruption 1% Temperature Cool (6) Movement Treading (240) Ox1 Location -9/Mines Parts ------- > --- POWER (1) -------- Ion Engine > --- PROPULSION (2) --- Light Treads Light Treads > --- UTILITY (2) ------ High-capacity Storage Unit 0b10 Alert Chip > --- WEAPON (2) ------- Shotgun > --- INVENTORY (20) --- Light Ion Engine Light Ion Engine Reinforced Deuterium Engine Light Treads Light Treads Light Treads Medium Storage Unit Signal Interpreter ECM Suite Utility Shielding Utility Shielding Hardened Light Armor Plating Grenade Launcher Grenade Launcher Grenade Launcher Mining Laser Proton Bomb Trap Proton Bomb Trap Proton Bomb Trap Proton Bomb Trap Peak State ------------ > --- POWER ------------ Ion Engine > --- PROPULSION ------- Light Treads Light Treads > --- UTILITY ---------- High-capacity Storage Unit Trap Reconfigurator > --- WEAPON ----------- Assault Rifle Light Assault Rifle > --- INVENTORY -------- Light Ion Engine Light Ion Engine Reinforced Deuterium Engine Light Treads Light Treads Light Treads Medium Storage Unit Signal Interpreter ECM Suite Utility Shielding EM Pulse Gun Light Assault Rifle Grenade Launcher Grenade Launcher Mining Laser Proton Bomb Trap Proton Bomb Trap Proton Bomb Trap Proton Bomb Trap [Rating: 17] Favorites ----------- Power Ion Engine Engine Ion Engine Propulsion Light Treads Treads Light Treads Utility High-capacity Storage Unit Device Skeleton Box Storage High-capacity Storage Unit Processor Signal Interpreter Protection Utility Shielding Weapon Light Assault Rifle Energy Gun EM Pulse Gun Ballistic Gun Light Assault Rifle Build | -11 -10 -10 -10 -9 ------- Run | Yrd Mat Min Exi Min Slots Evolved . | . . . . . Power . | . . . . . Propulsion . | . . . . . Utility . | . . . . . Weapon . | . . . . . Parts Attached 20 | 7 3 4 3 3 Power 1 | 1 . . . . Engine 1 | 1 . . . . Core . | . . . . . Reactor . | . . . . . Propulsion 3 | 2 . 1 . . Treads 3 | 2 . 1 . . Leg . | . . . . . Wheel . | . . . . . Hover . | . . . . . Flight . | . . . . . Utility 7 | 1 3 . 3 . Device 2 | . . . 2 . Storage 2 | 1 1 . . . Processor 2 | . 1 . 1 . Hackware . | . . . . . Protection 1 | . 1 . . . Artifact . | . . . . . Weapon 9 | 3 . 3 . 3 Energy Gun 1 | 1 . . . . Energy Cannon . | . . . . . Ballistic Gun 8 | 2 . 3 . 3 Ballistic Cannon . | . . . . . Launcher . | . . . . . Special Weapon . | . . . . . Impact Weapon . | . . . . . Slashing Weapon . | . . . . . Piercing Weapon . | . . . . . Special Melee Weapon . | . . . . . Unidentified Prototypes 3 | . . . 3 . Parts Lost 3 | . . 1 . 2 Power . | . . . . . Propulsion 1 | . . 1 . . Utility . | . . . . . Weapon 2 | . . . . 2 Highest Loss Streak 1 | . . 1 . 1 To Critical Strikes 1 | . . 1 . . Average Slot Usage (%) 98 | . 96 99 99 99 Engine 14 | . 14 14 14 14 Treads 27 | . 28 27 28 28 Storage 15 | . 18 14 14 14 Processor 11 | . 6 14 13 14 Ballistic Gun 27 | . 28 27 28 27 Naked Turns . | . . . . . Heaviest Build 53 | 13 53 48 50 51 Greatest Support 40 | 40 40 40 40 40 Greatest Overweight (x) 2 | 2 1 1 1 1 Average Overweight (x) . | . . 1 1 1 Largest Inventory Capacity 20 | 8 20 20 20 20 Average Capacity 18 | 7 17 20 20 20 Most Carried 20 | 5 15 18 20 20 Average Carried 14 | 3 10 15 19 19 Final Capacity 20 | 8 20 20 20 20 Final Carried 20 | 5 14 18 19 20 Class Distribution -------------------- 100% | Mutant Dominant Class ---------------- Mutant | -10/Materials Mutant | -10/Mines Mutant | -10/Exiles Mutant | -9/Mines Resources | -11 -10 -10 -10 -9 ----------- Run | Yrd Mat Min Exi Min Matter Collected 740 | 242 216 102 105 75 Remotely . | . . . . . Salvage Created 557 | 50 284 102 . 121 Parts 55 | 4 32 13 . 6 Haulers Intercepted 2 | . 2 . . . Recyclers Shooed 1 | . 1 . . . Parts Field Recycled . | . . . . . Retrieved Matter . | . . . . . Parts Self-Destructed . | . . . . . Prevented . | . . . . . Kills | -11 -10 -10 -10 -9 ------- Run | Yrd Mat Min Exi Min Combat Hostiles Destroyed 18 | . 10 6 . 2 Guns 18 | . 10 6 . 2 Classes Destroyed 7 | 1 4 . . 2 Worker 1 | . . . . 1 Tunneler 2 | 2 . . . . Hauler 2 | . 2 . . . Watcher 1 | . 1 . . . Swarmer 15 | . 9 6 . . Grunt 1 | . 1 . . . Sentry 2 | . . . . 2 Best Kill Streak 7 | 2 7 3 . 1 Combat Bots Only 6 | . 6 3 . 1 Max Kills in Single Turn 2 | 1 2 1 . 1 Gunslinging 1 | . 1 . . . Exploded . | . . . . . Melee . | . . . . . Uniques/NPCs Destroyed . | . . . . . Combat | -11 -10 -10 -10 -9 -------- Run | Yrd Mat Min Exi Min Hostile Shots Fired 114 | . 35 44 . 35 Missed 29 | . 8 11 . 10 Damage Taken 1129 | . 286 276 . 567 Core 253 | . 49 52 . 152 Absorbed by Shields . | . . . . . Core Remaining (%) 100 | 100 . . . . Volleys Fired 76 | 9 39 16 . 12 Largest 2 | 2 2 2 . 2 Hottest 46 | 40 40 40 . 46 Shots Fired 144 | 18 78 27 . 21 Gun 144 | 18 78 27 . 21 Cannon . | . . . . . Launcher . | . . . . . Special . | . . . . . Kinetic 144 | 18 78 27 . 21 Thermal . | . . . . . Explosive . | . . . . . Electromagnetic . | . . . . . Robot Hit Streak 13 | 5 10 4 . 13 Robot Miss Streak 4 | 1 3 4 . 2 Penetration Max . | . . . . . Secondary Targets 2 | . 2 . . . Max Gunslinging Chain 1 | . 1 . . . Shots Hit Robots 87 | 13 45 13 . 16 Core Hits 35 | 4 18 7 . 6 Critical Kills 1 | . 1 . . . Critical Parts Destroyed . | . . . . . Critical Strikes 1 | . 1 . . . Destroy 1 | . 1 . . . Melee Attacks . | . . . . . Impact . | . . . . . Slashing . | . . . . . Piercing . | . . . . . Sneak Attacks . | . . . . . Combat Hostiles . | . . . . . Follow-up Attacks . | . . . . . Damage Inflicted 1025 | 144 482 204 . 195 Guns 989 | 144 480 194 . 171 Cannons . | . . . . . Explosions . | . . . . . Melee . | . . . . . Ramming 36 | . 2 10 . 24 Kinetic 989 | 144 480 194 . 171 Thermal . | . . . . . Explosive . | . . . . . Electromagnetic . | . . . . . Impact . | . . . . . Slashing . | . . . . . Piercing . | . . . . . Highest Corruption 1 | . 1 1 1 1 Average Corruption 1 | . 1 1 1 1 Corruption Purged . | . . . . . Corruption Blocked . | . . . . . Effects 23 | . 4 7 4 8 Message Errors 6 | . 1 . 2 3 Matter Fused 9 | . 3 3 2 1 Energy Discharges 3 | . . 1 . 2 Data Loss (minor) 2 | . . 2 . . Data Loss (major) 2 | . . 1 . 1 Alerts 1 | . . . . 1 Overload Shots . | . . . . . Overflow Damage . | . . . . . Projectiles . | . . . . . Explosions . | . . . . . Melee . | . . . . . Knockbacks . | . . . . . Impact . | . . . . . Kinetic . | . . . . . Secondary . | . . . . . Self-Inflicted Damage . | . . . . . Shots . | . . . . . Rammed 8 | . 1 1 . 6 Targets Rammed 9 | . 1 1 . 7 Kicked . | . . . . . Crushed 1 | . . . . 1 Highest Temperature 36 | . 6 . . 36 Average Temperature 13 | . 6 . . 16 Received Heat Transfer 117 | . 18 . . 99 Siege Activations . | . . . . . Robots Corrupted . | . . . . . Combat Hostiles . | . . . . . Parts Fried . | . . . . . Impact Corruptions . | . . . . . Robots Melted . | . . . . . Combat Hostiles . | . . . . . Parts Melted . | . . . . . Heat Transferred . | . . . . . Parts Sabotaged . | . . . . . Parts Stolen . | . . . . . Parts Stripped . | . . . . . Power Chain Reactions . | . . . . . Alert | -11 -10 -10 -10 -9 ------- Run | Yrd Mat Min Exi Min Peak Influence 177 | 10 177 130 . 38 Initial 6 | . 6 . . . Average 36 | 2 54 50 . 9 Maximum Alert Level . | . . . . . Low Security (%) 100 | 100 100 100 . 100 Level 1 . | . . . . . Level 2 . | . . . . . Level 3 . | . . . . . Level 4 . | . . . . . Level 5 . | . . . . . High Security . | . . . . . Max Security . | . . . . . Squads Dispatched 1 | . 1 . . . Investigation 1 | . 1 . . . Extermination . | . . . . . Reinforcement . | . . . . . Assault . | . . . . . Garrison . | . . . . . Intercept . | . . . . . Searches Triggered . | . . . . . Construction Impeded . | . . . . . Haulers Reinforced . | . . . . . Active Scanning Responses . | . . . . . Cargo Convoy Interrupts . | . . . . . Stealth | -11 -10 -10 -10 -9 --------- Run | Yrd Mat Min Exi Min Distress Signals 1 | . 1 . . . Communications Jammed . | . . . . . Distress Signals . | . . . . . Times Spotted 33 | . 19 6 . 8 Peak Tracking Total 14 | . 4 3 . 14 Tactical Retreats 1 | . 1 . . . Traps | -11 -10 -10 -10 -9 ------- Run | Yrd Mat Min Exi Min Traps Triggered 2 | . 2 . . . Indirectly . | . . . . . Trap Hack Attempts . | . . . . . Triggered . | . . . . . Disarmed . | . . . . . Reprogrammed . | . . . . . Reused . | . . . . . Traps Extracted . | . . . . . Installed . | . . . . . Triggered . | . . . . . Most Traps Carried 4 | . . 4 4 4 Machines | -11 -10 -10 -10 -9 ---------- Run | Yrd Mat Min Exi Min Machines Disabled . | . . . . . Max in Single Turn . | . . . . . Machines Repaired . | . . . . . Machines Dismantled . | . . . . . Machines Sabotaged . | . . . . . Overloaded Fab Kills . | . . . . . Hacking | -11 -10 -10 -10 -9 --------- Run | Yrd Mat Min Exi Min Machines Accessed 8 | . 6 . . 2 Terminals 7 | . 5 . . 2 Fabricators . | . . . . . Repair Stations . | . . . . . Recycling Units 1 | . 1 . . . Scanalyzers . | . . . . . Garrison Access . | . . . . . Total Hacks 20 | . 14 . . 6 Successful 7 | . 4 . . 3 Failed 13 | . 10 . . 3 Catastrophic 2 | . 1 . . 1 Database Lockouts . | . . . . . Manual 14 | . 8 . 1 5 Terminals 19 | . 13 . . 6 Fabricators . | . . . . . Repair Stations . | . . . . . Recycling Units 1 | . 1 . . . Scanalyzers . | . . . . . Garrison Access . | . . . . . Terminal Hacks 6 | . 3 . . 3 Prototype ID Bank 4 | . 3 . . 1 Terminal Index 1 | . . . . 1 Zone Layout 1 | . . . . 1 Fabricator Hacks . | . . . . . Repair Station Hacks . | . . . . . Recycling Unit Hacks 1 | . 1 . . . Report Inventory 1 | . 1 . . . Scanalyzer . | . . . . . Garrison Access Hacks . | . . . . . Unauthorized Hacks . | . . . . . Terminals . | . . . . . Fabricators . | . . . . . Repair Stations . | . . . . . Recycling Units . | . . . . . Scanalyzers . | . . . . . Garrison Access . | . . . . . Data Cores Recovered . | . . . . . Used . | . . . . . Hacking Detections 7 | . 5 . . 2 Full Trace Events 3 | . 3 . . . Feedback Events . | . . . . . Feedback Blocked . | . . . . . Robot Schematics Acquired . | . . . . . Robots Built . | . . . . . Authchips . | . . . . . Time . | . . . . . Total Robot Build Rating . | . . . . . Part Schematics Acquired . | . . . . . Parts Built . | . . . . . Authchips . | . . . . . Time . | . . . . . Total Part Build Rating . | . . . . . Parts Repaired . | . . . . . Time . | . . . . . Parts Recycled . | . . . . . Recycled Matter . | . . . . . Retrieved Matter . | . . . . . Retrieved Components . | . . . . . Parts Scanalyzed . | . . . . . Part Schematics Acquired . | . . . . . Parts Damaged . | . . . . . Bothacking | -11 -10 -10 -10 -9 ------------ Run | Yrd Mat Min Exi Min Used RIF Installer . | . . . . . Robots Hacked . | . . . . . Non-combat . | . . . . . Combat . | . . . . . Robot Hacks Applied . | . . . . . Relay Couplers Released . | . . . . . Fabnet Peak Effective % . | . . . . . Robots Rewired . | . . . . . Allies Hacked . | . . . . . Hacks Repelled . | . . . . . Allies | -11 -10 -10 -10 -9 -------- Run | Yrd Mat Min Exi Min Total Allies . | . . . . . Largest Group . | . . . . . Highest-Rated Group . | . . . . . Highest-Rated Ally . | . . . . . Total Orders . | . . . . . Ally Attacks . | . . . . . Total Damage . | . . . . . Kills . | . . . . . Allies Corrupted . | . . . . . Allies Melted . | . . . . . Intel | -11 -10 -10 -10 -9 ------- Run | Yrd Mat Min Exi Min Robot Analysis Total . | . . . . . Derelict Logs Recovered 5 | . . 3 . 2 Drone Launches . | . . . . . Drone Recoveries . | . . . . . Exploration | -11 -10 -10 -10 -9 ------------- Run | Yrd Mat Min Exi Min Turns Passed 4625 | 166 1642 690 950 1177 Spaces Moved 1896 | 82 693 261 393 467 Core 8 | 8 . . . . Treads 1888 | 74 693 261 393 467 Legs . | . . . . . Wheels . | . . . . . Hover . | . . . . . Flight . | . . . . . Fastest Speed 50 | 50 160 240 240 240 Average Speed 226 | 154 214 240 240 240 Slowest Speed 240 | 160 240 240 240 240 Overloaded Moves . | . . . . . Propulsion Burnouts . | . . . . . Robots Hopped . | . . . . . Cave-ins Triggered . | . . . . . Exploration Rate (%) 57 | 5 75 56 63 88 Regions Visited 4 Branch Regions 3 Pre-discovered Areas . | . . . . . Known Exits Taken 2 | . 1 1 . . Unknown Exits Taken 2 | 1 . . 1 . Scrap Searched 2 | . . . . 2 Spaces Dug . | . . . . . Terrain Destroyed . | . . . . . Melee . | . . . . . Projectile . | . . . . . AOE . | . . . . . Terrain Rammed . | . . . . . Walls Destroyed . | . . . . . Machines Disabled . | . . . . . Actions | -11 -10 -10 -10 -9 --------- Run | Yrd Mat Min Exi Min Total 2082 | 103 781 301 402 495 Wait 36 | . 26 10 . . Move 1892 | 81 692 260 392 467 Hop . | . . . . . Pick Up 30 | 6 13 6 2 3 Fast Attach 10 | 5 2 . 2 1 Attach 5 | 1 1 2 1 . Detach 6 | . 2 1 3 . Swap 5 | 1 . 2 . 2 Drop 13 | . 5 3 2 3 Fire 76 | 9 39 16 . 12 Melee . | . . . . . Ram . | . . . . . Kick . | . . . . . Crush 9 | . 1 1 . 7 Escape Stasis . | . . . . . Rewire . | . . . . . Trap . | . . . . . Miscellaneous . | . . . . . Route ------- -11/Scrapyard -10/Materials (discovered 4 exits: *Mat x2 / *Min x2) -10/Mines (discovered 2 exits: *Mat / *Exi) -10/Exiles -9/Mines (discovered 2 exits: [*Mat x2]) History --------- Turn | Location | Event 13 | -11/Scrapyard | Discovered new exit (range 15) 167 | -11/Scrapyard | Entered Materials 301 | -10/Materials | Build established: Mutant 545 | -10/Materials | Discovered new exit (range 14) 1016 | -10/Materials | Discovered new exit (range 11) 1098 | -10/Materials | Identified exit to Materials 1276 | -10/Materials | Discovered exit to Materials (range 16) 1425 | -10/Materials | Discovered new exit (range 13) 1806 | -10/Materials | Identified exit to Mines 1809 | -10/Materials | Entered Mines 1875 | -10/Mines | Learned Materials trap positions 2045 | -10/Mines | Learned Materials emergency access door positions 2121 | -10/Mines | Learned Materials security intel 2248 | -10/Mines | Found a hidden stash of uninstalled traps 2283 | -10/Mines | Discovered exit to Materials (range 5) 2489 | -10/Mines | Deemed a non-threat by the Exiles lab entrance 2489 | -10/Mines | Discovered new exit (range 5) 2496 | -10/Mines | Identified exit to Exiles 2499 | -10/Mines | Entered Exiles 2560 | -10/Exiles | Met 8R-AWN 2599 | -10/Exiles | Met EX-HEX 2786 | -10/Exiles | Met EX-BIN 2817 | -10/Exiles | Aligned with FarCom system 2820 | -10/Exiles | Given EX-Vault access code 2877 | -10/Exiles | Opened EX-Vault 2894 | -10/Exiles | Found Prototype Device 2945 | -10/Exiles | Warned to stay clear of 0b10 Research branches 3016 | -10/Exiles | Identified Trap Reconfigurator 3025 | -10/Exiles | Found Prototype Device 3025 | -10/Exiles | Identified Skeleton Box 3039 | -10/Exiles | Found Prototype Processor 3039 | -10/Exiles | Identified 0b10 Alert Chip 3274 | -10/Exiles | Met EX-DEC 3422 | -10/Exiles | Discovered new exit (range 14) 3449 | -10/Exiles | Left Exiles lab with 0b10 Alert Chip 3449 | -10/Exiles | Entered Mines 3495 | -9/Mines | Learned location of 1 exit from Lower Caves 3654 | -9/Mines | YI-UF0 nonchalantly dropped a Grenade Launcher on the ground 3920 | -9/Mines | Core integrity fell below 50% 3985 | -9/Mines | Core integrity fell below 20% 4007 | -9/Mines | Joined a pair of Derelicts in attacking an 0b10 outpost 4504 | -9/Mines | Discovered new exit (range 10) 4535 | -9/Mines | Discovered new exit (range 14) 4618 | -9/Mines | Assembled infested the area 4626 | -9/Mines | Destroyed by as-30651 with Assembled Heavy Rifle Last Messages --------------- 04385_ Found Hvy. EM Pulse Gun. 04385_ Found Autogun. 04385_ Found 27 Matter. 04394_ Dropped Lgt. Assault Rifle. 04396_ Acquired 10 matter. 04408_ Slammed into T-07 Excavator. 04483_ GUPIHUER|F2JYC,RTF6AL 04490_ Slammed into K-01 Serf. 04504_ EXIT=FOUND 04534_ K-01 Serf cleans the Core Extractor. 04535_ EXIT=FOUND 04537_ K-01 Serf cleans the Core Extractor. 04578_ System corrupted: Substantial component data lost. 04618_ ALERT: Infestation in the mines, dispatching Demolisher response squad. 04621_ C-30 ARC bursts open, deploying its payload. 04621_ D-53 Grenadier unfolds itself. 04622_ K-01 Serf collects debris. 04622_ K-01 Serf destroyed. 04626_ Autogun destroyed. Map ----- +----------------------------------------------------+ | ?# #????????# ### """ """ #?????? | | ?# #????????# ### #?????? | | ?# #????????# """ #?????? | | ?# #????????##### """ #?????? | | ## #????????????# """ < #?????? | | #????????????# #?????? | | ####????????????# """ """ #?????? | | ????????????????# """ """ #?????? | | ???###??????????# """ """ #?????? | | ??# ##?????????# #?????? | | ?? #?????????####### ####?????? | | ## #???????????????# ##???????? | | #% #???????????????# ##??????? | | % ##??????????????## ##?????? | | ]= #?????????????### ##????? | | ##????????????## #????? | | ##?????????????# #????? | | ###??????????????# < ##????? | | ##????????????????## d #?????? | | #??????????????????##### d ##????? | | ##????????????????????###% ##???? | | #???????????????????## #???? | | #??????????????????## #???? | | ##??????????????????# #???? | | #??######???????????# ##??? | | ??##"[!"##???????????# @ #??? | | ??#"" ""#?###??????# #??? | | ??# ## ##?????# #??? | | ??## ## #?????# #?? | | ??###++## #?????# #? | | ### #????# #? | | ##??? a ##? | | ### ###??? #?? | | ?## ##???# #?? | | ##% #???# #?? | | #??# """ #?? | | #??# """ a ##?? | | ### ##?? ?"" ##??? | | # #####?####??? ??? a##???? | | ####?????????????? ????#### a#????? | | ??????????????????????????? #????? | | ??????????????????????????? ??????? | | ??????????????????????????????????? | | ??????????????????????????????????? | | ??????????????????????????????????? | | ??????????????????????????????????? | | ??????????????????????????????????? | | ??????????????????????????????????? | | ??????????????????????????????????? | | ??????????????????????????????????? | +----------------------------------------------------+ Best States ------------- Heat Dissipation 25 Energy Generation 10 Energy Capacity 250 Matter Stores 300 Matter Capacity 300 Sight Range 16 Terrain Scan Density 10 Utility Shielding 33 Evasion (%) 40 Recoil Reduction 2 Item Schematics ----------------- None Robot Schematics ------------------ None Fabricated ------------ Nothing Alien Tech Used ----------------- None Achievements -------------- None Challenges ------------ None Game ------ Seed BladeFocalBay Manual? 0 Play Time 00:20:57 Cumulative 35.2 hours Start 2024.04.06 @ 20:22:19 End 2024.04.12 @ 22:47:25 Sessions 2 Manual Loads 0 Difficulty Rogue Special Mode None Game No. 26 Rogue 26 Adventurer 0 Explorer 0 Win Type - Total 0 Types 0/0/0/0/0/0/0/0/0 Lore% 24 Gallery% 30 Achievement% 24 Wizard Run 0 Options --------- Layout 0 ASCII 0 Keyboard 1 Movement Numpad Keybinds 0 Fullscreen 2 Font 24/Smallcaps Map View 76x56 Zoom Use 0% Tactical HUD 1 Map Filters NONE Filters NONE Steam 1 RUN: ca1a750f-6aeb-4064-8708-26ae96d998ee